{"text_format":"3","workbook":"xlsx","n_sheets":1,"sheets":["Sheet1"],"not_rendered":{"defined_names":2},"read":"whole","date_system":"1900"}

{"sheet":"Sheet1","index":0,"n_rows":41,"n_cols":20,"rows_kept":41,"merged":[[0,0,0,1],[1,0,1,11],[2,0,3,0],[2,1,3,1],[2,2,3,2],[2,3,3,3],[2,4,3,4],[2,5,3,5],[2,6,2,10],[2,11,3,11],[3,15,3,17],[4,0,4,11],[18,0,18,11],[29,0,29,11]]}
["附件2"]
["贺兰县2021年自主招聘中小学事业编教师岗位计划一览表"]
["序号","招聘类别","经费形式","岗位名称","岗位简介","招聘人数","应聘人员所需资格和条件",{"$nulls":4},"考核形式"]
[{"$nulls":6},"招聘范围","年龄","学历学位","所需专业","与岗位相关的其他要求",{"$nulls":3},"分组","学科",null,null,"岗位数","面试人数"]
["一、高中教师13个岗位43名教师"]
[1,"高中教师","全额","语文教师","高中语文教学",5,"全国","35周岁及以下","本科及以上且取得学士学位","汉语言、汉语言文学、汉语言文学教育、中文教育（不包括文秘或秘书方向）","具有高级中学语文教师资格证。","笔试+面试",null,null,1,"高中语文5",null,null,5,{"$f":"S6*3","v":15}]
[2,"高中教师","全额","数学教师","高中数学教学",5,"全国","35周岁及以下","本科及以上且取得学士学位","数学与应用数学、应用数学","具有高级中学数学教师资格证。","笔试+面试",null,null,2,"初中语文6",null,null,6,{"$f":"S7*3","v":18}]
[3,"高中教师","全额","英语教师","高中英语教学",5,"全国","35周岁及以下","本科及以上且取得学士学位","英语、商务英语","具有高级中学英语教师资格证。","笔试+面试",null,null,3,"小学语文1组",null,null,7,21]
[4,"高中教师","全额","物理教师","高中物理教学",6,"全国","35周岁及以下","本科及以上且取得学士学位","物理学类","具有高级中学物理教师资格证。","笔试+面试",null,null,4,"小学语文2组",null,null,8,24]
[5,"高中教师","全额","生物教师","高中生物教学",3,"全国","35周岁及以下","本科及以上且取得学士学位","生物科学类、生物工程类","具有高级中学生物教师资格证。","笔试+面试",null,null,5,"高中数学5",null,null,5,15]
[6,"高中教师","全额","化学教师","高中化学教学",2,"全国","35周岁及以下","本科及以上且取得学士学位","化学类","具有高级中学化学教师资格证。","笔试+面试",null,null,6,"初中数学8",null,null,8,24]
[7,"高中教师","全额","政治教师","高中政治教学",3,"全国","35周岁及以下","本科及以上且取得学士学位","政治学类","具有高级中学政治教师资格证。","笔试+面试",null,null,7,"小学数学1组",null,null,6,18]
[8,"高中教师","全额","历史教师","高中历史教学",3,"全国","35周岁及以下","本科及以上且取得学士学位","历史学类","具有高级中学历史教师资格证。","笔试+面试",null,null,8,"小学数学2组",null,null,6,18]
[9,"高中教师","全额","地理教师","高中地理教学",3,"全国","35周岁及以下","本科及以上且取得学士学位","地理科学类、地球物理学类","具有高级中学地理教师资格证。","笔试+面试",null,null,9,"高中英语5",null,null,5,15]
[10,"高中教师","全额","音乐教师","高中音乐教学",2,"全国","35周岁及以下","本科及以上且取得学士学位","音乐学、音乐教育、音乐表演、舞蹈学、舞蹈教育","具有高中音乐教师及以上资格证。","笔试+面试",null,null,10,"初中英语2","小学英语4",null,6,18]
[11,"高中教师","全额","美术教师","高中美术教学",2,"全国","35周岁及以下","本科及以上且取得学士学位","美术学、绘画、中国画、油画、书法学","具有高中美术教师及以上资格证。","笔试+面试",null,null,11,"高中物理6","初中物理3",null,9,27]
[12,"高中教师","全额","体育教师","高中体育教学",2,"全国","35周岁及以下","本科及以上且取得学士学位","体育学类","具有高中体育教师及以上资格证。","笔试+面试",null,null,12,"初中生物2","高中生物3","高中化学2",7,21]
[13,"高中教师","全额","心理健康","高中心理健康",2,"全国","35周岁及以下","本科及以上且取得学士学位","心理学类","具有高级中学教师资格证及心理咨询师资格证。","笔试+面试",null,null,13,"高中历史3","初中历史6",null,9,27]
["二、初中教师10个岗位55名教师"]
[14,"初中教师","全额","语文教师","初中语文教学",8,"全国","35周岁及以下","本科及以上且取得学士学位","汉语言、汉语言文学、汉语言文学教育、中文教育（不包括文秘或秘书方向）","具有初级中学语文教师及以上资格证。","笔试+面试",null,null,14,"初中地理6","高中地理3",null,9,{"$f":"S20*3","v":27}]
[15,"初中教师","全额","数学教师","初中数学教学",8,"全国","35周岁及以下","本科及以上且取得学士学位","数学与应用数学、应用数学","具有初级中学数学教师及以上资格证。","笔试+面试",null,null,15,"高中音乐2","小学音乐6",null,8,24]
[16,"初中教师","全额","英语教师","初中英语教学",4,"全国","35周岁及以下","本科及以上且取得学士学位","英语、商务英语","具有初级中学英语教师及以上资格证。","笔试+面试",null,null,16,"高中美术2","小学美术4",null,6,18]
[17,"初中教师","全额","物理教师","初中物理教学",4,"全国","35周岁及以下","本科及以上且取得学士学位","物理学类","具有初级中学物理教师及以上资格证书。","笔试+面试",null,null,17,"高中体育2",null,null,2,6]
[18,"初中教师","全额","生物教师","初中生物教学",4,"全国","35周岁及以下","本科及以上且取得学士学位","生物科学类、生物工程类","具有初级中学生物教师及以上资格证书。","笔试+面试",null,null,18,"小学体育8",null,null,8,24]
[19,"初中教师","全额","道德与法治教师","初中道德与法治教学",8,"全国","35周岁及以下","本科及以上且取得学士学位","政治学类","具有初级中学思想政治教师及以上资格证书。","笔试+面试",null,null,19,"初中政治8",null,null,8,24]
[20,"初中教师","全额","历史教师","初中历史教学",6,"全国","35周岁及以下","本科及以上且取得学士学位","历史学类","具有初级历史教师及以上资格证书。","笔试+面试",null,null,20,"高中政治3",null,null,3,9]
[21,"初中教师","全额","地理教师","初中地理教学",6,"全国","35周岁及以下","本科及以上且取得学士学位","地理科学类","具有初级地理教师及以上资格证书。","笔试+面试",null,null,21,"小学科学",null,null,8,24]
[22,"初中教师","全额","心理健康","初中心理健康",5,"全国","35周岁及以下","本科及以上且取得学士学位","心理学类","具有初级中学教师及以上资格证书及心理咨询师资格证。","笔试+面试",null,null,22,"初中心理健康5","高中心理健康2",null,7,21]
[23,"初中教师","全额","信息技术教师","初中信息技术教学",2,"全国","35周岁及以下","本科及以上且取得学士学位","计算机科学与技术类、教育技术学","具有初中信息技术教师及以上资格证。","笔试+面试",null,null,23,"初中信息技术2","小学信息技术2",null,4,12]
["三、小学教师11个岗位72名教师"]
[24,"小学教师","全额","语文教师","小学语文教学（一)",6,"全国","35周岁及以下","本科及以上且取得学士学位或师范类专业专科","汉语言、汉语言文学、汉语言文学教育、中文教育（不包括文秘或秘书方向）、小学教育","具有小学语文教师及以上资格证。","笔试+面试",{"$nulls":6},{"$f":"SUM(S6:S29)","v":150},{"$f":"SUM(T6:T29)","v":450}]
[25,"小学教师","全额","语文教师","小学语文教学（二 )",7,"全国","35周岁及以下","本科及以上且取得学士学位或师范类专业专科","汉语言、汉语言文学、汉语言文学教育、中文教育（不包括文秘或秘书方向）、小学教育","具有小学语文教师及以上资格证。","笔试+面试"]
[26,"小学教师","全额","语文教师","小学语文教学（三）",7,"全国","35周岁及以下","本科及以上且取得学士学位或师范类专业专科","汉语言、汉语言文学、汉语言文学教育、中文教育（不包括文秘或秘书方向）、小学教育","具有小学语文教师及以上资格证。","笔试+面试"]
[27,"小学教师","全额","数学教师","小学数学教学（一）",8,"全国","35周岁及以下","本科及以上且取得学士学位或师范类专业专科","数学与应用数学、应用数学、小学教育","具有小学数学教师及以上资格证。。","笔试+面试"]
[28,"小学教师","全额","数学教师","小学数学教学（二）",8,"全国","35周岁及以下","本科及以上且取得学士学位或师范类专业专科","数学与应用数学、应用数学、小学教育","具有小学数学教师及以上资格证。","笔试+面试"]
[29,"小学教师","全额","英语教师","小学英语教学",8,"全国","35周岁及以下","本科及以上且取得学士学位或师范类专业专科","英语","具有小学英语教师及以上资格证。","笔试+面试"]
[30,"小学教师","全额","音乐教师","小学音乐教学",6,"全国","35周岁及以下","本科及以上且取得学士学位或师范类专业专科","音乐学、音乐教育、音乐表演、舞蹈学、舞蹈教育","具有小学音乐教师及以上资格证。","笔试+面试"]
[31,"小学教师","全额","美术教师","小学美术教学",4,"全国","35周岁及以下","本科及以上且取得学士学位或师范类专业专科","美术学、绘画、中国画、油画、书法学","具有小学美术教师及以上资格证。","笔试+面试"]
[32,"小学教师","全额","科学教师","小学科学教学",8,"全国","35周岁及以下","本科及以上且取得学士学位或师范类专业专科","科学教育","具有小学教师及以上资格证。","笔试+面试"]
[33,"小学教师","全额","体育教师","小学体育教学",8,"全国","35周岁及以下","本科及以上且取得学士学位或师范类专业专科","体育学类","具有小学体育教师及以上资格证。","笔试+面试"]
[34,"小学教师","全额","信息技术教师","小学信息技术教学",2,"全国","35周岁及以下","本科及以上且取得学士学位或师范类专业专科","计算机科学与技术类、教育技术学","具有小学信息技术教师及以上资格证。","笔试+面试"]